bitfinex/quotes_SOLUSD_20240705
["timestamp","ask_amount","ask_price","bid_price","bid_amount"]
[1720146443194,100.0,125.92,125.84,35.1651]
[1720146443565,100.0,125.9,125.84,15.2997]
[1720146443759,100.0,125.9,125.81,19.9706]
[1720146443959,7.9409,125.93,125.85,7.9458]
[1720146444289,100.0,125.92,125.85,7.9458]
[1720146444591,107.9403,125.94,125.85,7.9454]
[1720146444792,100.0,125.94,125.86,27.8086]
[1720146445001,100.0,125.98,125.88,7.9439]
[1720146445167,100.0,125.96,125.87,6.5956]
[1720146445365,100.0,125.95,125.87,6.5956]
[1720146445601,100.0,125.95,125.87,14.5402]
[1720146445766,100.0,125.95,125.87,14.5401]
[1720146445970,100.0,125.95,125.88,7.9438]
[1720146446291,108.20969213,125.99,125.88,7.9438]
[1720146446292,100.0,125.96,125.88,15.96]
[1720146446480,107.9391,125.96,125.88,35.8201]
[1720146446668,7.9384,125.97,125.88,43.764]
[1720146447172,7.939,125.96,125.88,43.764]
[1720146447368,108.20923407,125.98,125.88,35.8201]
[1720146447695,7.9389,125.97,125.89,7.9432]
[1720146447867,59.090986,126.0,125.92,7.9409]
[1720146447868,39.227786,126.0,125.92,7.9409]
[1720146448072,139.227786,126.0,125.89,27.8011]
[1720146448378,139.227786,126.0,125.91,19.8546]
[1720146448563,139.227786,126.0,125.93,7.9409]
[1720146448770,139.227786,126.0,125.91,19.8546]
[1720146448970,139.227786,126.0,125.88,66.09]
[1720146449178,7.9376,125.99,125.9,7.9425]
[1720146449375,100.0,125.96,125.88,15.96]
[1720146449597,107.9382,125.98,125.89,7.9432]
[1720146450087,147.164286,126.0,125.91,7.942]
[1720146450263,100.0,125.98,125.88,15.96]
[1720146450460,39.227786,126.0,125.92,7.9415]
[1720146450667,39.227786,126.0,125.93,7.9406]
[1720146450877,39.227786,126.0,125.88,63.52]
[1720146451081,39.227786,126.0,125.89,0.17]
[1720146451372,39.227786,126.0,125.9,104.1961]
[1720146451566,39.227786,126.0,125.97,7.9382]
[1720146451792,39.227786,126.0,125.96,7.9389]
[1720146451998,39.227786,126.0,125.91,0.17]
[1720146452202,39.227786,126.0,125.9,104.1961]
[1720146452378,147.164586,126.0,125.91,7.9416]
[1720146452707,147.164586,126.0,125.91,7.942]
[1720146452708,47.164386,126.0,125.91,7.942]
[1720146452879,147.164386,126.0,125.91,7.942]
[1720146453079,147.164386,126.0,125.9,26.3615]
[1720146453080,39.227786,126.0,125.92,19.8532]
[1720146453276,39.227786,126.0,125.93,7.9404]
[1720146453475,39.227786,126.0,125.92,27.7947]
[1720146453675,7.9372,125.99,125.91,7.942]
[1720146453898,7.9384,125.97,125.9,6.5061]
[1720146454105,107.9384,125.97,125.9,6.5061]
[1720146454480,7.9392,125.96,125.9,6.5061]
[1720146454676,100.0,125.89,125.81,0.1]
[1720146454885,107.9478,125.82,125.81,0.1]
[1720146455477,107.9478,125.82,125.72,0.04713194]
[1720146455478,7.9531,125.74,125.72,0.04713194]
[1720146455689,100.0,125.76,125.72,0.04713194]
[1720146456399,107.9508,125.78,125.72,0.04713194]
[1720146456589,107.9504,125.78,125.72,0.04713194]
[1720146456791,100.0,125.76,125.72,0.04713194]
[1720146457107,100.0,125.78,125.72,0.04713194]
[1720146457606,114.631532,125.82,125.72,8.00083194]
[1720146457784,100.0,125.8,125.72,0.04713194]
[1720146457979,100.0,125.8,125.73,19.8835]
[1720146458180,100.0,125.8,125.72,0.04713194]
[1720146458377,6.683132,125.82,125.72,0.04713194]
[1720146458378,100.0,125.76,125.72,0.04713194]
[1720146458576,150.13,125.81,125.72,0.04713194]
[1720146458577,100.0,125.78,125.72,0.04713194]
[1720146458774,100.0,125.76,125.72,0.04713194]
[1720146458978,107.9518,125.76,125.72,0.04713194]
[1720146459203,100.0,125.78,125.72,0.04713194]
[1720146459407,100.0,125.8,125.72,0.04713194]
[1720146459796,114.630932,125.82,125.72,0.04713194]
[1720146459978,106.683132,125.82,125.74,7.9523]
[1720146460174,100.0,125.8,125.72,0.04713194]
[1720146460379,106.683132,125.82,125.72,8.00073194]
[1720146460692,106.683132,125.82,125.72,0.04713194]
[1720146460693,100.0,125.8,125.72,0.04713194]
[1720146461104,100.0,125.78,125.72,0.04713194]
[1720146462005,107.9491,125.8,125.72,0.04713194]
[1720146462194,100.0,125.78,125.72,0.04713194]
[1720146462387,100.0,125.76,125.72,0.04713194]
[1720146463016,100.0,125.8,125.72,19.93243194]
[1720146463307,107.9513,125.77,125.72,0.04713194]
[1720146463506,107.9502,125.79,125.72,0.04713194]
[1720146463683,100.0,125.79,125.72,0.04713194]
[1720146463880,158.0787,125.81,125.72,8.00123194]
[1720146464382,100.0,125.79,125.72,0.04713194]
[1720146464581,150.13,125.81,125.72,8.00073194]
[1720146464789,100.0,125.78,125.72,0.04713194]
[1720146465683,100.0,125.76,125.72,0.04713194]
[1720146465885,100.0,125.78,125.72,0.04713194]
[1720146466305,150.13,125.81,125.72,0.04713194]
[1720146466306,107.9517,125.76,125.72,0.04713194]
[1720146466482,100.0,125.74,125.72,0.04713194]
[1720146467185,100.0,125.76,125.72,0.04713194]
[1720146468206,108.20306563,125.78,125.72,0.04713194]
[1720146468382,100.0,125.8,125.72,0.04713194]
[1720146469184,107.9504,125.78,125.72,0.04713194]
[1720146469385,100.0,125.73,125.72,0.04713194]
[1720146470410,107.9535,125.73,125.72,0.04713194]
[1720146470944,7.9541,125.72,125.71,0.1]
[1720146471122,100.0,125.64,125.51,0.1]
[1720146471411,100.0,125.54,125.51,0.1]
[1720146471587,100.0,125.58,125.51,0.1]
[1720146471784,31.92361,125.55,125.51,0.1]
[1720146472312,100.0,125.61,125.51,0.1]
[1720146472510,19.9262,125.59,125.51,0.1]
[1720146472724,100.0,125.61,125.51,0.1]
[1720146472725,100.0,125.69,125.51,0.1]
[1720146472899,100.0,125.68,125.6,7.9617]
[1720146473397,19.8815,125.75,125.55,15.0]
[1720146473398,100.0,125.66,125.55,15.0]
[1720146473710,19.9073,125.67,125.55,15.0]
[1720146473919,19.9073,125.67,125.61,7.9608]
[1720146474111,19.9073,125.67,125.62,45.0]
[1720146474112,100.0,125.66,125.62,45.0]
[1720146474288,100.0,125.66,125.55,15.0]
[1720146474289,100.0,125.66,125.61,45.0]
[1720146474713,100.0,125.66,125.6,45.0]
[1720146475122,100.0,125.64,125.56,19.9099]
[1720146475429,100.0,125.66,125.57,7.963]
[1720146475595,100.0,125.66,125.56,19.9099]
[1720146476098,100.0,125.64,125.56,19.9099]
[1720146476301,31.898243,125.67,125.52,19.9158]
[1720146476302,100.0,125.62,125.52,19.9158]
[1720146476512,100.0,125.64,125.52,19.9158]
[1720146476700,100.0,125.64,125.56,7.9643]
[1720146476892,100.0,125.64,125.56,7.964]
[1720146477230,100.0,125.67,125.52,39.8315]
[1720146477392,100.0,125.67,125.59,7.9621]
[1720146477593,19.912,125.66,125.6,45.0]
[1720146477993,100.0,125.65,125.6,45.0]
[1720146478902,19.912,125.66,125.6,45.0]
[1720146479227,19.912,125.66,125.59,45.0]
[1720146479426,19.912,125.66,125.59,52.9623]
[1720146479592,100.0,125.67,125.59,52.9623]
[1720146479794,100.0,125.67,125.59,45.0]
[1720146480016,100.0,125.67,125.58,45.0]
[1720146480221,8.1809932,125.68,125.59,19.9045]
[1720146480412,100.0,125.71,125.66,7.9578]
[1720146480619,100.0,125.71,125.6,51.2369]
[1720146480620,100.0,125.71,125.67,45.0]
[1720146480928,100.0,125.7,125.62,7.9602]
[1720146481127,148.02482402,125.72,125.62,7.9604]
[1720146481299,100.0,125.7,125.6,26.1401]
[1720146481620,7.9569,125.68,125.6,6.2369]
[1720146481832,107.9555,125.7,125.6,6.2369]
[1720146481996,140.07042402,125.72,125.62,19.9012]
[1720146482193,100.0,125.74,125.63,45.0]
[1720146482396,100.0,125.74,125.64,19.8966]
[1720146482631,100.0,125.74,125.6,6.2369]
[1720146482632,7.9536,125.73,125.65,45.0]
[1720146482817,108.17890074,125.74,125.65,45.0]
[1720146483017,100.0,125.72,125.65,45.0]
[1720146483196,108.17910367,125.74,125.64,45.0]
[1720146483402,100.0,125.74,125.66,19.8947]
[1720146483698,100.0,125.74,125.67,45.0]
[1720146484826,100.0,125.74,125.67,52.9572]
[1720146485124,100.0,125.76,125.67,45.0]
[1720146485328,100.0,125.74,125.67,45.0]
[1720146485642,100.0,125.74,125.67,52.9573]
[1720146485802,100.0,125.74,125.67,45.0]
[1720146486632,100.0,125.74,125.6,6.2369]
[1720146486633,31.879264,125.77,125.68,19.8916]
[1720146486824,31.879264,125.77,125.65,47.56]
[1720146487004,100.0,125.77,125.67,19.8924]
[1720146487347,15.2847,125.86,125.62,7.9599]
[1720146487348,7.9547,125.72,125.62,7.9599]
[1720146487626,7.9522,125.76,125.67,7.9572]
[1720146487824,100.0,125.79,125.64,47.56]
[1720146488121,100.0,125.79,125.71,19.8857]
[1720146488439,100.0,125.79,125.6,79.54792791]
[1720146488602,19.9026,125.8,125.69,19.8886]
[1720146488805,19.9026,125.8,125.72,19.8851]
[1720146489019,19.9026,125.8,125.76,7.9516]
[1720146489261,19.9026,125.8,125.75,7.9521]
[1720146489428,8.1762776,125.84,125.7,16.1154]
[1720146489771,50.13,125.88,125.79,7.9496]
[1720146489772,158.0741,125.88,125.79,7.9496]
[1720146490042,158.0741,125.88,125.79,19.8743]
[1720146490043,100.0,125.88,125.79,19.8743]
[1720146490249,108.17389131,125.88,125.79,19.8743]
[1720146490442,108.17389131,125.88,125.71,87.5035]
[1720146490628,7.9453,125.87,125.71,87.5035]
[1720146490957,100.0,125.86,125.76,19.878]
[1720146491128,7.9467,125.84,125.76,19.878]
[1720146491328,100.0,125.87,125.76,19.878]
[1720146491535,107.9483,125.82,125.72,27.8384]
[1720146491958,100.0,125.8,125.7,16.1154]
[1720146492240,100.0,125.76,125.68,6.5659]
[1720146492464,100.0,125.76,125.63,35.852]
[1720146492465,100.0,125.74,125.63,19.8995]
[1720146492631,19.8777,125.77,125.6,8.18102791]
[1720146492632,100.0,125.78,125.67,19.8922]
[1720146492951,100.0,125.8,125.7,19.8884]
[1720146493135,100.0,125.82,125.61,65.13]
[1720146493443,7.9494,125.8,125.7,19.8885]
[1720146493648,100.0,125.83,125.71,6.1999]
[1720146493847,100.0,125.85,125.71,53.7599]
[1720146494064,108.17389131,125.88,125.8,19.8728]
[1720146494350,7.9448,125.87,125.77,7.951]
[1720146494550,31.847861,125.9,125.73,47.56]
[1720146494780,100.0,125.94,125.77,47.56]
[1720146495056,8.17191672,125.91,125.85,7.9459]
[1720146495352,8.17191672,125.91,125.8,21.8359]
[1720146495548,100.0,125.94,125.8,21.8359]
[1720146495760,7.9445,125.88,125.8,21.8359]
[1720146495918,100.1,125.89,125.8,21.8359]
[1720146496123,0.1,125.89,125.81,19.8698]
[1720146496653,0.1,125.89,125.8,21.8359]
[1720146496864,0.1,125.89,125.8,41.7086]
[1720146497153,100.1,125.89,125.8,33.9563]
[1720146497323,100.1,125.89,125.8,6.1351]
[1720146497324,100.0,125.87,125.8,6.1351]
[1720146497647,100.1,125.89,125.79,7.9494]
[1720146497961,7.9442,125.88,125.78,19.8745]
[1720146498245,0.1,125.89,125.84,7.9465]
[1720146498464,0.1,125.89,125.83,19.8679]
[1720146498647,0.1,125.89,125.83,27.8149]
[1720146499025,0.1,125.89,125.84,7.9464]
[1720146499230,0.1,125.89,125.83,27.8145]
[1720146499649,0.1,125.89,125.83,19.8679]
[1720146500160,0.1,125.89,125.85,7.9458]
[1720146500527,0.1,125.89,125.86,7.9447]
[1720146501046,0.1,125.89,125.85,19.8635]
[1720146501349,0.1,125.89,125.87,7.9446]
[1720146501554,0.1,125.89,125.84,7.9459]
[1720146501734,0.1,125.89,125.82,47.56]
[1720146501735,0.1,125.89,125.83,19.8666]
[1720146501932,0.1,125.89,125.82,47.73]
[1720146502239,0.1,125.89,125.85,27.8094]
[1720146502443,0.1,125.89,125.86,7.945]
[1720146502627,0.1,125.89,125.83,7.9466]
[1720146502831,0.1,125.89,125.85,7.9459]
[1720146503047,0.1,125.89,125.78,19.8746]
[1720146503252,100.1,125.89,125.76,19.8778]
[1720146503433,0.1,125.89,125.81,7.9482]
[1720146503851,0.1,125.89,125.82,7.9477]
[1720146504159,100.1,125.89,125.8,7.9487]
[1720146504342,0.1,125.89,125.79,19.8738]
[1720146504547,100.0,125.88,125.75,76.2556]
[1720146504753,8.0436,125.89,125.8,7.9485]
[1720146504938,7.9455,125.86,125.77,7.951]
[1720146505257,0.1,125.89,125.75,6.246]
[1720146505440,0.1,125.89,125.82,7.9476]
[1720146505640,0.1,125.89,125.83,7.9469]
[1720146505962,0.1,125.89,125.83,7.9471]
[1720146506467,100.1,125.89,125.81,19.8702]
[1720146506770,100.1,125.89,125.78,19.8753]
[1720146506946,100.1,125.89,125.8,7.9491]
[1720146507341,100.1,125.89,125.81,7.9482]
[1720146507652,100.1,125.89,125.8,19.8716]
[1720146507653,0.1,125.89,125.8,19.8716]
[1720146507844,0.1,125.89,125.82,19.8684]
[1720146508056,0.1,125.89,125.79,87.3076]
[1720146508364,0.1,125.89,125.86,19.8618]
[1720146508664,0.1,125.89,125.83,19.8676]
[1720146508876,0.1,125.89,125.85,19.8637]
[1720146509038,0.1,125.89,125.83,19.8668]
[1720146509740,0.1,125.89,125.85,7.9458]
[1720146510152,0.1,125.89,125.83,27.8139]
[1720146510357,0.1,125.89,125.86,7.9452]
[1720146510652,0.1,125.89,125.84,7.9464]
[1720146511349,0.1,125.89,125.85,7.9458]
[1720146511539,0.1,125.89,125.81,87.2993]
[1720146511736,0.1,125.89,125.88,7.944]
[1720146513254,0.1,125.89,125.88,8.114]
[1720146513440,0.1,125.99,125.92,7.9411]
[1720146513756,0.1,125.99,125.9,19.8564]
[1720146514645,0.1,125.99,125.91,7.9417]
[1720146514843,0.1,125.99,125.91,7.9416]
[1720146515543,100.0,125.98,125.87,7.9441]
[1720146515741,107.938,125.98,125.89,7.9434]
[1720146515944,100.0,125.98,125.86,53.9916]
[1720146516146,0.1,125.99,125.87,0.17]
[1720146516462,7.9378,125.98,125.9,19.856]
[1720146516941,7.9378,125.98,125.9,27.7987]
[1720146517767,8.0372,125.99,125.9,27.7987]
[1720146518073,0.1,125.99,125.9,19.856]
[1720146518235,7.9382,125.98,125.9,19.856]
[1720146518437,7.9381,125.98,125.87,19.8612]
[1720146518660,7.9381,125.98,125.86,53.9916]
[1720146518661,0.1,125.99,125.9,7.9424]
[1720146518839,8.0374,125.99,125.9,7.9424]
[1720146519041,8.0374,125.99,125.91,19.854]
[1720146519042,0.1,125.99,125.91,19.854]
[1720146519275,0.1,125.99,125.91,47.56]
[1720146519439,0.1,125.99,125.92,0.17]
[1720146519750,0.1,125.99,125.91,47.56]
[1720146519955,0.1,125.99,125.98,7.9377]
[1720146520356,0.1,125.99,125.95,19.8478]
[1720146521066,0.1,125.99,125.88,50.13]
[1720146521274,0.1,125.99,125.96,7.9384]
[1720146521479,0.1,125.99,125.97,19.8451]
[1720146521652,0.1,125.99,125.88,50.13]
[1720146521968,100.1,125.99,125.86,6.4316]
[1720146522261,0.1,125.99,125.94,7.94]
[1720146522470,0.1,125.99,125.86,56.5616]
[1720146522654,0.1,125.99,125.94,19.8501]
[1720146522970,0.1,125.99,125.94,67.4101]
[1720146523271,0.1,125.99,125.98,7.9377]
[1720146523947,0.1,125.99,125.98,55.4977]
[1720146524141,32.561186,126.0,125.99,55.4971]
[1720146524376,0.1,126.09,126.02,7.9346]
[1720146524668,0.1,126.09,126.04,7.9339]
[1720146525251,0.1,126.09,126.01,47.56]
[1720146525577,0.1,126.09,126.08,7.9314]
[1720146526371,0.4017372,126.16,126.15,7.927]
[1720146526949,0.4017372,126.16,126.14,19.8183]
[1720146527275,0.4017372,126.16,126.15,7.927]
[1720146527460,0.4017372,126.16,126.14,19.8182]
[1720146527661,0.4017372,126.16,126.14,27.7456]
[1720146527988,0.4017372,126.16,126.14,75.3056]
[1720146528194,0.4017372,126.16,126.15,0.17]
[1720146528501,0.4017372,126.16,126.14,27.7456]
[1720146528646,0.9248227,126.29,126.18,19.8129]
[1720146528845,0.9248227,126.29,126.22,7.9222]
[1720146529147,7.9192,126.28,126.17,0.17]
[1720146529361,100.9248227,126.29,126.16,27.9107]
[1720146529362,108.8432227,126.29,126.16,27.9107]
[1720146529573,0.9248227,126.29,126.16,19.8147]
[1720146529774,100.0,126.27,126.16,19.8147]
[1720146530153,100.9248227,126.29,126.16,19.8147]
[1720146530386,0.9248227,126.29,126.2,19.809]
[1720146531076,100.9248227,126.29,126.18,7.9247]
[1720146531292,100.9248227,126.29,126.15,25.9657]
[1720146531579,7.9192,126.28,126.15,25.9657]
[1720146531779,0.9248227,126.29,126.16,0.17]
[1720146531780,100.9248227,126.29,126.16,0.17]
[1720146532090,100.9248227,126.29,126.15,25.9657]
[1720146532379,7.919,126.28,126.16,7.926]
[1720146532556,7.9194,126.28,126.16,7.9263]
[1720146532755,100.9248227,126.29,126.15,25.9657]
[1720146532975,100.0,126.25,126.11,19.8234]
[1720146533279,100.0,126.18,126.07,19.8297]
[1720146533461,6.5436,126.21,126.11,7.9293]
[1720146533784,6.5436,126.21,126.1,19.8244]
[1720146533983,6.5436,126.21,126.15,7.927]
[1720146534155,6.5436,126.21,126.13,19.8195]
[1720146534486,6.5436,126.21,126.14,7.9274]
[1720146534664,6.3891,126.26,126.16,19.8153]
[1720146534875,6.3891,126.26,126.14,7.9275]
[1720146534876,7.9215,126.24,126.14,7.9275]
[1720146535081,100.0,126.25,126.12,19.8215]
[1720146535273,100.0,126.23,126.12,19.8215]
[1720146535594,0.9248227,126.29,126.19,19.8101]
[1720146535889,0.9248227,126.29,126.18,50.13]
[1720146536219,0.9248227,126.29,126.25,27.7216]
[1720146537079,0.9248227,126.29,126.26,7.9199]
[1720146538393,0.9248227,126.29,126.25,19.8014]
[1720146538603,0.9248227,126.29,126.21,19.8067]
[1720146538769,0.9248227,126.29,126.2,47.56]
[1720146538770,0.9248227,126.29,126.25,7.9202]
[1720146538973,0.9248227,126.29,126.18,39.6232]
[1720146539300,0.9248227,126.29,126.2,19.8083]
[1720146539667,0.9248227,126.29,126.21,7.9232]
[1720146539867,0.9248227,126.29,126.2,19.8083]
[1720146540072,0.9248227,126.29,126.23,7.922]
[1720146540280,0.9248227,126.29,126.2,19.8083]
[1720146540484,0.9248227,126.29,126.23,19.8044]
[1720146541196,0.9248227,126.29,126.19,19.8103]
[1720146541394,0.9248227,126.29,126.18,87.1847]
[1720146541696,0.9248227,126.29,126.28,7.9189]
[1720146542001,0.9248227,126.29,126.27,19.7987]
[1720146542200,0.9248227,126.29,126.25,7.9207]
[1720146542402,0.9248227,126.29,126.23,27.7254]
[1720146542697,0.9248227,126.29,126.19,47.73]
[1720146543001,0.9248227,126.29,126.28,7.9189]
[1720146543300,0.9248227,126.29,126.26,27.7193]
[1720146543519,0.9248227,126.29,126.27,7.9192]
[1720146543671,0.9248227,126.29,126.26,19.7995]
[1720146543672,0.9248227,126.29,126.28,7.9189]
[1720146544414,0.0470848,126.35,126.34,27.7029]
[1720146545303,0.0470848,126.35,126.34,27.8729]
[1720146545474,0.0470848,126.35,126.34,27.7029]
[1720146545879,0.0470848,126.35,126.34,27.8729]
[1720146546290,8.48e-05,126.35,126.34,75.4329]
[1720146546481,0.1,126.39,126.38,27.6942]
[1720146546687,0.1,126.39,126.38,27.8642]
[1720146547093,22.538,126.49,126.4,7.9113]
[1720146547307,22.538,126.49,126.4,8.0813]
[1720146547609,2.27e-05,126.41,126.4,55.4713]
[1720146547909,0.1,126.49,126.48,27.6722]
[1720146548500,0.8248227,126.54,126.51,19.76]
[1720146548797,0.8248227,126.54,126.53,7.9032]
[1720146549594,2.27e-05,126.54,126.53,55.6332]
[1720146549999,0.1,126.59,126.58,27.6504]
[1720146551704,0.1,126.59,126.58,19.7503]
[1720146551896,0.1,126.59,126.54,19.756]
[1720146552093,0.1,126.59,126.57,19.7512]
[1720146552595,0.1,126.59,126.53,19.7573]
[1720146552797,0.1,126.59,126.49,19.7632]
[1720146552998,6.3446,126.56,126.45,19.7691]
[1720146553206,6.3446,126.56,126.36,167.29464852]
[1720146553410,6.3446,126.56,126.4,50.13]
[1720146553612,6.3446,126.56,126.48,7.9061]
[1720146553797,6.3446,126.56,126.47,19.7675]
[1720146553798,14.2461,126.56,126.47,19.7675]
[1720146553994,7.9026,126.54,126.45,7.9082]
[1720146554303,7.9021,126.55,126.44,7.9083]
[1720146554518,14.246,126.56,126.46,19.7688]
[1720146554692,6.3446,126.56,126.49,19.7642]
[1720146554894,15.2611,126.58,126.49,19.7642]
[1720146555317,15.2611,126.58,126.44,19.7707]
[1720146555318,115.2611,126.58,126.44,19.7707]
[1720146555492,7.9032,126.53,126.44,19.7707]
[1720146555694,7.9066,126.48,126.38,7.9126]
[1720146555994,7.9052,126.5,126.37,47.56]
[1720146556192,6.056,126.51,126.41,19.7754]
[1720146556419,6.056,126.51,126.38,50.13]
[1720146556627,6.056,126.51,126.43,7.9094]
[1720146556797,6.056,126.51,126.41,19.7767]
[1720146557302,7.9054,126.5,126.41,19.7767]
[1720146557495,100.0,126.49,126.36,50.13]
[1720146557821,6.056,126.51,126.38,87.1212]
[1720146558022,100.0,126.5,126.38,7.912]
[1720146558204,100.0,126.48,126.35,19.7847]
[1720146558552,100.0,126.43,126.32,19.7909]
[1720146558833,7.9101,126.42,126.32,27.7072]
[1720146559002,7.9094,126.44,126.32,19.7909]
[1720146559206,7.9097,126.43,126.33,7.9152]
[1720146559401,107.9097,126.43,126.32,19.7909]
[1720146559710,107.9097,126.43,126.27,255.3]
[1720146559711,100.0,126.43,126.27,255.3]
[1720146559906,100.0,126.41,126.27,302.86]
[1720146560112,7.9133,126.37,126.28,7.9187]
[1720146560429,7.9133,126.37,126.3,19.7927]
[1720146560430,100.0,126.37,126.3,19.7927]
[1720146560596,100.0,126.37,126.28,7.9183]
[1720146560797,100.0,126.37,126.22,17.3927077]
[1720146560798,7.9139,126.36,126.27,7.9195]
[1720146560993,7.9126,126.38,126.26,19.7997]
[1720146561227,6.5231,126.39,126.33,7.9156]
[1720146561418,6.5231,126.39,126.34,19.7874]
[1720146561617,6.5231,126.39,126.31,19.7921]
[1720146561804,100.0,126.41,126.26,97.69]
[1720146562000,7.9109,126.41,126.31,27.7086]
[1720146562202,100.0,126.43,126.31,19.7922]
[1720146562406,100.0,126.43,126.33,7.9152]
[1720146562718,106.3458,126.45,126.34,19.787]
[1720146562928,106.3458,126.45,126.36,7.9133]
[1720146563108,106.3458,126.45,126.31,27.7089]
[1720146563109,7.9113,126.41,126.31,27.7089]
[1720146563309,7.9113,126.4,126.31,19.7923]
[1720146563705,100.0,126.43,126.32,7.9158]
[1720146563904,100.0,126.43,126.31,19.7923]
[1720146564129,107.9112,126.41,126.31,27.7092]
[1720146564338,107.9112,126.41,126.29,7.9179]
[1720146564339,100.0,126.41,126.29,7.9179]
[1720146564628,100.0,126.38,126.22,9.00532648]
[1720146564850,100.0,126.39,126.22,9.00532648]
[1720146565046,100.0,126.37,126.28,7.9188]
[1720146565351,107.9124,126.39,126.29,7.9181]
[1720146565565,107.9133,126.37,126.28,19.796]
[1720146565928,107.9158,126.33,126.25,19.8017]
[1720146566121,16.2623,126.35,126.22,0.8248227]
[1720146566122,124.1769,126.35,126.22,0.8248227]
[1720146566323,116.2623,126.35,126.22,0.8248227]
[1720146566752,116.2623,126.35,126.29,7.9182]
[1720146566753,16.2623,126.35,126.29,7.9182]
[1720146566932,16.2623,126.35,126.28,7.9187]
[1720146567446,16.2623,126.35,126.26,19.7993]
[1720146567651,116.2623,126.35,126.23,19.8044]
[1720146567856,116.2623,126.35,126.22,0.8248227]
[1720146567857,100.0,126.31,126.22,0.8248227]
[1720146568151,100.0,126.29,126.22,0.8248227]
[1720146568333,7.9196,126.27,126.22,0.8248227]
[1720146568533,107.9185,126.29,126.22,0.8248227]
[1720146568744,100.0,126.29,126.22,0.8248227]
[1720146569252,107.9184,126.29,126.22,0.8248227]
[1720146570247,100.0,126.31,126.22,0.8248227]
[1720146570444,106.2706,126.33,126.22,0.8248227]
[1720146571460,100.0,126.27,126.22,0.8248227]
[1720146571774,100.0,126.25,126.21,0.1]
[1720146571952,100.0,126.23,126.09,19.8129]
[1720146572138,100.0,126.21,126.12,7.9288]
[1720146572331,107.9225,126.23,126.14,7.9275]
[1720146572533,7.9227,126.22,126.13,7.9282]
[1720146572757,107.9253,126.18,126.11,0.1]
[1720146573062,100.0,126.19,126.11,0.1]
[1720146573735,107.9247,126.19,126.11,0.1]
[1720146574327,107.9247,126.19,126.11,8.0294]
[1720146574328,100.0,126.19,126.11,8.0294]
[1720146574857,100.0,126.17,126.11,0.1]
[1720146575855,107.9258,126.17,126.11,0.1]
[1720146576093,100.0,126.17,126.11,0.1]
[1720146576238,100.0,126.21,126.11,0.1]
[1720146576439,100.0,126.19,126.11,27.8523]
[1720146576741,100.0,126.14,126.11,0.1]
[1720146576941,100.0,126.14,126.03,7.9344]
[1720146577149,100.0,126.12,126.01,8.0352]
[1720146577350,100.0,126.12,126.03,7.9343]
[1720146577546,100.0,126.12,126.01,0.1]
[1720146577547,100.0,126.12,126.05,7.9332]
[1720146577746,100.0,126.14,126.06,7.9325]
[1720146577949,100.0,126.19,126.01,0.1]
[1720146578150,100.0,126.18,126.12,7.9284]